Cogmind - Beta 14 @@@ ROGUE MODE // 2025.01.13 @ 23:38:11 Player: muesli Result: Destroyed by G-34 Mercenary with Small Laser Performance ------------- Evolutions (1) 500 Regions Visited (2) 400 Robots Destroyed (7) 35 Value Destroyed (185) 185 Prototype IDs (0) 0 Alien Tech Used (0) 0 Bonus (0) 0 TOTAL SCORE: 1120 Bonus ------- None Cogmind --------- Core Integrity 0/400 Matter 282/300 Energy 100/100 System Corruption 0% Temperature Cool (6) Movement Core (50) Location -9/Materials Parts ------- > --- POWER (1) -------- (None) > --- PROPULSION (2) --- (None) > --- UTILITY (4) ------ (None) > --- WEAPON (2) ------- (None) > --- INVENTORY (5) ---- Improved Hover Unit Improved Hover Unit Improved Hover Unit Improved Hover Unit Peak State ------------ > --- POWER ------------ Ion Engine > --- PROPULSION ------- Hover Unit Hover Unit > --- UTILITY ---------- Small Storage Unit Terrain Scanner > --- WEAPON ----------- EM Pulse Gun Small Laser > --- INVENTORY -------- Ion Engine Hover Unit Light Assault Rifle [Rating: 7] Favorites ----------- Power Ion Engine Engine Ion Engine Propulsion Hover Unit Treads Light Treads Leg Aluminum Leg Hover Unit Hover Unit Utility Small Storage Unit Device Terrain Scanner Storage Small Storage Unit Processor Signal Interpreter Weapon Small Laser Energy Gun Small Laser Ballistic Gun Light Assault Rifle Build | -11 -10 -9 ------- Run | Yrd Mat Mat Slots Evolved 2 | . . 2 Power . | . . . Propulsion . | . . . Utility 2 | . . 2 Weapon . | . . . Parts Attached 18 | 8 7 3 Power 2 | 1 . 1 Engine 2 | 1 . 1 Core . | . . . Reactor . | . . . Propulsion 7 | 3 2 2 Treads 2 | 2 . . Leg 1 | 1 . . Wheel . | . . . Hover 4 | . 2 2 Flight . | . . . Utility 4 | 1 3 . Device 2 | . 2 . Storage 1 | 1 . . Processor 1 | . 1 . Hackware . | . . . Protection . | . . . Artifact . | . . . Weapon 5 | 3 2 . Energy Gun 3 | 2 1 . Energy Cannon . | . . . Ballistic Gun 2 | 1 1 . Ballistic Cannon . | . . . Launcher . | . . . Special Weapon . | . . . Impact Weapon . | . . . Slashing Weapon . | . . . Piercing Weapon . | . . . Special Melee Weapon . | . . . Unidentified Prototypes . | . . . Corrupted Parts 1 | . 1 . System Corruption 2 | . 2 . Parts Lost 6 | . 6 . Power 1 | . 1 . Propulsion 2 | . 2 . Utility 1 | . 1 . Weapon 2 | . 2 . Highest Loss Streak 5 | . 5 . To Critical Strikes . | . . . Average Slot Usage (%) 73 | . 92 4 Engine 10 | . 12 . Hover 19 | . 24 2 Device 9 | . 12 . Storage 8 | . 10 . Processor 3 | . 3 1 Energy Gun 19 | . 25 . Ballistic Gun 1 | . 1 . Peak Build Rating 7 | 6 7 6 Average Rating 5 | 4 6 . On Entrance 2 | . 6 1 Naked Turns 204 | . . 204 Heaviest Build 14 | 13 14 5 Greatest Support 20 | 20 20 14 Greatest Overweight (x) 2 | 1 2 . Average Overweight (x) . | . . . Largest Inventory Capacity 8 | 8 8 5 Average Capacity 6 | 7 7 5 Most Carried 5 | 3 3 5 Average Carried 2 | 1 2 3 Final Capacity 8 | 8 5 5 Final Carried 4 | 3 2 4 Class Distribution -------------------- 100% | Mutant Dominant Class ---------------- Mutant | -10/Materials Mutant | -9/Materials Resources | -11 -10 -9 ----------- Run | Yrd Mat Mat Matter Collected 389 | 203 186 . Remotely . | . . . Salvage Created 301 | . 301 . Parts 20 | . 20 . Haulers Intercepted . | . . . Recyclers Shooed 1 | . 1 . Parts Field Recycled . | . . . Retrieved Matter . | . . . Parts Self-Destructed . | . . . Prevented . | . . . Kills | -11 -10 -9 ------- Run | Yrd Mat Mat Combat Hostiles Destroyed 4 | . 4 . Guns 4 | . 4 . Classes Destroyed 4 | . 4 . Worker 1 | . 1 . Recycler 1 | . 1 . Watcher 1 | . 1 . Grunt 4 | . 4 . Best Kill Streak 4 | . 4 . Combat Bots Only 2 | . 2 . Max Kills in Single Turn 1 | . 1 . Gunslinging . | . . . Exploded . | . . . Melee . | . . . Uniques/NPCs Destroyed . | . . . Combat | -11 -10 -9 -------- Run | Yrd Mat Mat Hostile Shots Fired 74 | . 45 29 Missed 22 | . 12 10 Damage Taken 854 | . 441 413 Core 553 | . 146 407 Absorbed by Shields . | . . . Core Remaining (%) 70 | 100 41 . Volleys Fired 40 | 1 39 . Largest 2 | 2 2 . Hottest 80 | 80 80 . Shots Fired 52 | 2 50 . Gun 52 | 2 50 . Cannon . | . . . Launcher . | . . . Special . | . . . Kinetic 27 | . 27 . Thermal 12 | 1 11 . Explosive . | . . . Electromagnetic 13 | 1 12 . Robot Hit Streak 9 | 2 9 . Robot Miss Streak 3 | . 3 . Penetration Max . | . . . Secondary Targets . | . . . Shots Hit Robots 37 | 2 35 . Core Hits 21 | . 19 2 Critical Kills . | . . . Critical Parts Destroyed . | . . . Critical Strikes . | . . . Melee Attacks . | . . . Impact . | . . . Slashing . | . . . Piercing . | . . . Sneak Attacks . | . . . Combat Hostiles . | . . . Follow-up Attacks . | . . . Damage Inflicted 456 | 25 417 14 Guns 384 | 25 359 . Cannons . | . . . Explosions . | . . . Melee . | . . . Ramming 72 | . 58 14 Kinetic 170 | . 170 . Thermal 88 | 10 78 . Explosive . | . . . Electromagnetic 126 | 15 111 . Impact . | . . . Slashing . | . . . Piercing . | . . . Highest Corruption 4 | . 4 . Average Corruption 2 | . 2 . Corruption Purged . | . . . Corruption Blocked . | . . . Effects 2 | . 2 . Parts Rejected 1 | . 1 . Data Loss (major) 1 | . 1 . Overload Shots . | . . . Overflow Damage . | . . . Projectiles . | . . . Explosions . | . . . Melee . | . . . Knockbacks 1 | . 1 . Impact 1 | . 1 . Kinetic . | . . . Secondary . | . . . Self-Inflicted Damage 34 | . 28 6 Shots . | . . . Rammed 17 | . 14 3 Targets Rammed 17 | . 14 3 Kicked . | . . . Crushed . | . . . Highest Temperature 308 | 18 308 . Average Temperature 120 | 12 125 . Received Heat Transfer 402 | . 264 138 Effects 3 | . 3 . Interference 2 | . 2 . Matter Decay 1 | . 1 . Siege Activations . | . . . Robots Corrupted . | . . . Combat Hostiles . | . . . Parts Fried . | . . . Impact Corruptions . | . . . Robots Melted . | . . . Combat Hostiles . | . . . Parts Melted . | . . . Heat Transferred 200 | 25 175 . Parts Sabotaged . | . . . Parts Stolen . | . . . Parts Stripped . | . . . Power Chain Reactions . | . . . Alert | -11 -10 -9 ------- Run | Yrd Mat Mat Peak Influence 60 | . 60 20 Initial 20 | . . 20 Average 7 | . 5 20 Maximum Alert Level . | . . . Low Security (%) 100 | 100 100 100 Level 1 . | . . . Level 2 . | . . . Level 3 . | . . . Level 4 . | . . . Level 5 . | . . . High Security . | . . . Max Security . | . . . Squads Dispatched 2 | . 1 1 Investigation . | . . . Extermination . | . . . Reinforcement 2 | . 1 1 Assault . | . . . Garrison . | . . . Intercept . | . . . Searches Triggered . | . . . Construction Impeded . | . . . Haulers Reinforced . | . . . Active Scanning Responses . | . . . Cargo Convoy Interrupts . | . . . Stealth | -11 -10 -9 --------- Run | Yrd Mat Mat Distress Signals . | . . . Communications Jammed . | . . . Distress Signals . | . . . Times Spotted 15 | . 13 2 Peak Tracking Total 4 | . 4 1 Tactical Retreats . | . . . Traps | -11 -10 -9 ------- Run | Yrd Mat Mat Traps Triggered 1 | . 1 . Indirectly . | . . . Trap Hack Attempts . | . . . Triggered . | . . . Disarmed . | . . . Reprogrammed . | . . . Reused . | . . . Traps Extracted . | . . . Installed . | . . . Triggered . | . . . Machines | -11 -10 -9 ---------- Run | Yrd Mat Mat Machines Disabled . | . . . Max in Single Turn . | . . . Machines Repaired . | . . . Machines Dismantled . | . . . Machines Sabotaged . | . . . Overloaded Fab Kills . | . . . Hacking | -11 -10 -9 --------- Run | Yrd Mat Mat Machines Accessed 1 | . 1 . Terminals 1 | . 1 . Fabricators . | . . . Repair Stations . | . . . Recycling Units . | . . . Scanalyzers . | . . . Garrison Access . | . . . Total Hacks 2 | . 2 . Successful 1 | . 1 . Failed 1 | . 1 . Catastrophic . | . . . Database Lockouts . | . . . Manual . | . . . Terminals 2 | . 2 . Fabricators . | . . . Repair Stations . | . . . Recycling Units . | . . . Scanalyzers . | . . . Garrison Access . | . . . Terminal Hacks 1 | . 1 . Locate Traps 1 | . 1 . Fabricator Hacks . | . . . Repair Station Hacks . | . . . Recycling Unit Hacks . | . . . Scanalyzer . | . . . Garrison Access Hacks . | . . . Unauthorized Hacks . | . . . Terminals . | . . . Fabricators . | . . . Repair Stations . | . . . Recycling Units . | . . . Scanalyzers . | . . . Garrison Access . | . . . Data Cores Recovered . | . . . Used . | . . . Hacking Detections 1 | . 1 . Full Trace Events . | . . . Feedback Events . | . . . Feedback Blocked . | . . . Robot Schematics Acquired . | . . . Robots Built . | . . . Authchips . | . . . Time . | . . . Total Robot Build Rating . | . . . Part Schematics Acquired . | . . . Parts Built . | . . . Authchips . | . . . Time . | . . . Total Part Build Rating . | . . . Parts Repaired . | . . . Time . | . . . Parts Recycled . | . . . Recycled Matter . | . . . Retrieved Matter . | . . . Retrieved Components . | . . . Parts Scanalyzed . | . . . Part Schematics Acquired . | . . . Parts Damaged . | . . . Bothacking | -11 -10 -9 ------------ Run | Yrd Mat Mat Used RIF Installer . | . . . Robots Hacked . | . . . Non-combat . | . . . Combat . | . . . Robot Hacks Applied . | . . . Relay Couplers Released . | . . . Fabnet Peak Effective % . | . . . Robots Rewired . | . . . Allies Hacked . | . . . Hacks Repelled . | . . . Allies | -11 -10 -9 -------- Run | Yrd Mat Mat Total Allies . | . . . Largest Group . | . . . Highest-Rated Group . | . . . Highest-Rated Ally . | . . . Total Orders . | . . . Ally Attacks . | . . . Total Damage . | . . . Kills . | . . . Allies Corrupted . | . . . Allies Melted . | . . . Intel | -11 -10 -9 ------- Run | Yrd Mat Mat Robot Analysis Total . | . . . Derelict Logs Recovered . | . . . Drone Launches . | . . . Drone Recoveries . | . . . Exploration | -11 -10 -9 ------------- Run | Yrd Mat Mat Turns Passed 1310 | 167 905 238 Spaces Moved 580 | 97 441 42 Core 63 | 7 49 7 Treads 104 | 89 15 . Legs 1 | 1 . . Wheels . | . . . Hover 412 | . 377 35 Flight . | . . . Fastest Speed 50 | 50 50 50 Average Speed 97 | 153 89 55 Slowest Speed 200 | 160 200 60 Overloaded Moves . | . . . Propulsion Burnouts . | . . . Robots Hopped . | . . . Cave-ins Triggered . | . . . Exploration Rate (%) 22 | 8 55 5 Regions Visited 2 Branch Regions . Pre-discovered Areas . | . . . Known Exits Taken 1 | . 1 . Unknown Exits Taken 1 | 1 . . Scrap Searched . | . . . Spaces Dug . | . . . Terrain Destroyed . | . . . Melee . | . . . Projectile . | . . . AOE . | . . . Terrain Rammed . | . . . Walls Destroyed . | . . . Machines Disabled . | . . . Actions | -11 -10 -9 --------- Run | Yrd Mat Mat Total 1270 | 110 903 257 Wait 607 | 2 401 204 Move 578 | 96 440 42 Hop . | . . . Pick Up 7 | 2 1 4 Fast Attach 11 | 7 2 2 Attach 2 | . 1 1 Detach 1 | 1 . . Swap 5 | 1 4 . Drop 2 | . 1 1 Fire 40 | 1 39 . Melee . | . . . Ram 17 | . 14 3 Kick . | . . . Crush . | . . . Escape Stasis . | . . . Rewire . | . . . Trap . | . . . Miscellaneous . | . . . Route ------- -11/Scrapyard -10/Materials (discovered 2 exits: *Mat x2) -9/Materials History --------- Turn | Location | Event 15 | -11/Scrapyard | Discovered new exit (range 16) 168 | -11/Scrapyard | Entered Materials 310 | -10/Materials | Build established: Mutant 848 | -10/Materials | Discovered new exit (range 16) 872 | -10/Materials | Identified exit to Materials 1014 | -10/Materials | Core integrity fell below 50% 1024 | -10/Materials | Lost 5 parts (1p2n1u1w) 1060 | -10/Materials | Discovered exit to Materials (range 11) 1073 | -10/Materials | Entered another Materials area 1073 | -9/Materials | Evolved 2 slots: Utility x2 1107 | -9/Materials | Released all parts (4) 1289 | -9/Materials | Core integrity fell below 50% 1294 | -9/Materials | Core integrity fell below 20% 1311 | -9/Materials | Destroyed by G-34 Mercenary with Small Laser Last Messages --------------- K-01 Serf collects debris. K-01 Serf cleans the Fusion Modulator. K-01 Serf collects debris. M-13 Machinist repairs Sml. Matter Pod. K-01 Serf collects debris. R-06 Scavenger collects Ion Engine. K-01 Serf collects debris. K-01 Serf cleans the Fusion Modulator. R-06 Scavenger collects Imp. Hover Unit. K-01 Serf collects debris. K-01 Serf cleans the Fusion Modulator. Fusion Modulator explodes. Repair Station disabled. Backup Power III tumbles out of repair station. Fusion Modulator explodes. Terminal disabled. Fusion Modulator explodes. K-01 Serf destroyed. M-13 Machinist destroyed. R-06 Scavenger destroyed. Map ----- +----------------------------------------------------+ | ?????????????????????????????????????????????? | | ?????????????????????????????????????????????? | | ?????????????????????????????????????????????? | | ?????????????????????????????????????????????? | | ?????????????????????????????????????????????? | | ?????????????????????????????????????????????? | | ?????????????????????????????????????????????? | | ?????????????????????????????????????????????? | | ?????????????????????????????????????????????? | | ?????????????????????????????????????????????? | | ?????????????????????????????????????????????? | | ???????????????????#? ?????? ???????????????? | | ???????????????????# ????? ????????????????? | | ???????????????????# ????? ????????????????? | | ???????????????????# ???? ????????????????? | | ???????????????????# ???? ????????????????? | | ???????????????? ?# ???#+#??#####+#???????? | | ????????????????" # #### ### ;; ##??????? | | ????????????????? # o ; ;;;; #??????? | | ?????????????????? + #??????? | | ???????????????????# ;??????? | | ???????????????????# ;####### | | ???????????????????# ; # | | ???????????????????# * ; # | | ???????????????????# =% ; = # | | ???????????????????# @ g = + = = # | | ???????????????????##;;; = ;; # # | | ????????????????????# ; #; # # | | ????????????????????###;;; ""############## | | ??????????????????????###########????????????? | | ?????????????????????????????????????????????? | | ?????????????????????????????????????????????? | | ?????????????????????????????????????????????? | | ?????????????????????????????????????????????? | | ?????????????????????????????????????????????? | | ?????????????????????????????????????????????? | | | | | | | | | | | | | | | | | | | | | | | | | | | | | +----------------------------------------------------+ Best States ------------- Heat Dissipation 28 Energy Generation 10 Energy Capacity 250 Matter Stores 300 Matter Capacity 300 Sight Range 16 Robot Scan Range 14 Terrain Scan Range 14 Terrain Scan Density 10 Evasion (%) 53 Recoil Reduction 1 Item Schematics ----------------- None Robot Schematics ------------------ None Fabricated ------------ Nothing Alien Tech Used ----------------- None Achievements -------------- None Challenges ------------ None Game ------ Seed BarrageElectrostormBasin Manual? 0 Play Time 00:10:52 Cumulative 6.6 hours Start 2025.01.13 @ 23:28:13 End 2025.01.13 @ 23:38:11 Sessions 1 Manual Loads 0 Difficulty Rogue Special Mode None Game No. 12 Rogue 9 Adventurer 3 Explorer 0 Win Type - Total 0 Types 0/0/0/0/0/0/0/0/0 Lore% 4 Gallery% 11 Achievement% 13 Wizard Run 0 Options --------- Layout 0 ASCII 1 Keyboard 1 Movement Vi Keybinds 0 Fullscreen 2 Font 24/Smallcaps Map View 76x50 Zoom Use 0% Tactical HUD 0 Map Filters NONE Filters NONE Steam 1 RUN: 2021cf55-c1ea-4662-a210-4a466a6032f6